bitfinex/quotes_ETHUSD_20250210
["timestamp","ask_amount","ask_price","bid_price","bid_amount"]
[1739169744549,3.79553,2634.7,2634.4,0.7583]
[1739169744699,3.79553,2634.7,2634.6,3.33591389]
[1739169744900,3.79553,2634.7,2634.6,3.43673111]
[1739169748702,3.79536,2634.8,2634.6,3.43673111]
[1739169748919,3.79536,2634.8,2634.6,0.10081722]
[1739169749234,4.62049,2634.7,2634.6,0.10081722]
[1739169750051,3.79549,2634.7,2634.6,0.10081722]
[1739169753516,3.79543,2634.8,2634.6,0.85911722]
[1739169754932,3.79549,2634.7,2634.6,0.10081722]
[1739169755141,4.62049,2634.7,2634.6,0.10081722]
[1739169755327,3.79564,2634.6,2634.5,3.33591389]
[1739169767094,4.58674,2634.6,2634.5,3.33591389]
[1739169767992,7.58674,2634.6,2634.5,3.33591389]
[1739169771575,6.79564,2634.6,2634.5,3.33591389]
[1739169772988,3.79556,2634.7,2634.5,3.33591389]
[1739169773320,3.79556,2634.7,2634.6,0.10040998]
[1739169774022,3.79564,2634.6,2634.5,3.33591389]
[1739169774321,3.79564,2634.6,2634.5,3.43632387]
[1739169774509,3.79564,2634.6,2634.5,3.33591389]
[1739169775017,4.56234,2634.6,2634.5,3.33591389]
[1739169775824,7.56234,2634.6,2634.5,3.33591389]
[1739169776121,3.79607,2634.3,2634.2,3.33591389]
[1739169776314,3.79607,2634.3,2634.2,3.43616597]
[1739169776490,3.79607,2634.3,2634.2,3.33591389]
[1739169777638,6.79607,2634.3,2634.2,3.33591389]
[1739169778139,7.56277,2634.3,2634.2,3.33591389]
[1739169780549,6.79607,2634.3,2634.2,3.33591389]
[1739169781048,3.79607,2634.3,2634.2,3.43646516]
[1739169783769,3.79576,2634.6,2634.3,0.7739]
[1739169783917,3.79576,2634.6,2634.5,3.33591389]
[1739169784249,3.79576,2634.6,2634.5,3.43628231]
[1739169784548,3.79522,2634.9,2634.6,0.7739]
[1739169784851,3.79522,2634.9,2634.8,3.33591389]
[1739169785266,3.79522,2634.9,2634.8,3.43601641]
[1739169785638,3.79501,2635.1,2634.8,3.43601641]
[1739169785956,3.79521,2634.9,2634.8,3.43601641]
[1739169786764,3.79521,2634.9,2634.8,3.33591389]
[1739169787132,4.56900616,2634.9,2634.8,3.4355179]
[1739169787576,3.79564,2634.6,2634.5,3.33591389]
[1739169788102,3.79564,2634.6,2634.5,3.43561759]
[1739169789010,3.7955,2634.7,2634.5,3.43561759]
[1739169789215,3.7955,2634.7,2634.5,4.25131759]
[1739169789810,3.79564,2634.6,2634.5,4.25131759]
[1739169791720,3.7955,2634.7,2634.5,4.25131759]
[1739169791898,3.79564,2634.6,2634.5,4.25131759]
[1739169793681,3.7955,2634.7,2634.5,4.25131759]
[1739169794479,7.59109,2634.7,2634.5,4.25131759]
[1739169795529,3.7955,2634.7,2634.5,4.25131759]
[1739169795707,3.79557,2634.7,2634.5,4.25131759]
[1739169795896,3.79564,2634.6,2634.5,4.25131759]
[1739169797195,3.79564,2634.6,2634.5,3.43561759]
[1739169797401,12.87294,2634.6,2634.5,0.0997037]
[1739169797596,3.79607,2634.3,2633.9,0.8157]
[1739169797904,3.79607,2634.3,2634.0,0.10001943]
[1739169798108,3.79607,2634.3,2634.2,3.33591389]
[1739169798513,3.79607,2634.3,2634.2,3.43593332]
[1739169798708,3.79587,2634.5,2634.2,3.43593332]
[1739169799024,3.79587,2634.5,2634.3,0.8157]
[1739169799530,3.79587,2634.5,2634.4,0.10001943]
[1739169802758,3.79587,2634.5,2634.2,3.33591389]
[1739169803053,3.79587,2634.5,2634.3,0.10011083]
[1739169803223,3.79579,2634.5,2634.3,0.10011083]
[1739169803422,3.79579,2634.5,2634.2,3.33591389]
[1739169803624,3.79579,2634.5,2634.4,0.10011083]
[1739169803824,3.79579,2634.5,2634.2,3.33591389]
[1739169804026,3.79579,2634.5,2634.4,0.10011083]
[1739169804224,3.79558,2634.7,2634.2,7.13211389]
[1739169804443,3.79558,2634.7,2634.6,3.33591389]
[1739169804856,3.79535,2634.8,2634.6,3.43602472]
[1739169805836,3.8067,2635.1,2634.6,3.43602472]
[1739169806155,5.32,2635.2,2634.9,3.33591389]
[1739169806371,3.795,2635.1,2634.9,4.16191389]
[1739169806533,3.795,2635.1,2635.0,3.43602472]
[1739169807234,3.79474,2635.3,2635.0,3.43602472]
[1739169807445,7.58948,2635.3,2635.0,3.43602472]
[1739169807647,3.79479,2635.2,2635.0,3.43602472]
[1739169810197,4.60112,2635.5,2635.0,3.43602472]
[1739169810416,8.39556,2635.5,2635.4,3.33591389]
[1739169810694,11.39556,2635.5,2635.4,3.33591389]
[1739169810890,11.39556,2635.5,2635.4,3.43570901]
[1739169811286,11.39556,2635.5,2635.4,3.33591389]
[1739169812212,5.32,2635.6,2635.4,3.33591389]
[1739169812368,3.79434,2635.5,2635.4,3.33591389]
[1739169812569,3.79434,2635.5,2635.4,3.43570901]
[1739169813980,3.79434,2635.5,2635.4,3.33591389]
[1739169814214,4.60104,2635.5,2635.4,3.33591389]
[1739169815921,4.60104,2635.5,2635.4,3.43570901]
[1739169816503,4.60104,2635.5,2635.4,3.33591389]
[1739169816504,7.60104,2635.5,2635.4,3.33591389]
[1739169816703,7.54717,2635.2,2635.1,3.33591389]
[1739169822223,7.54717,2635.2,2635.1,3.43478949]
[1739169823818,7.54717,2635.2,2635.1,3.33591389]
[1739169829925,3.79521,2634.9,2634.8,3.33591389]
[1739169830310,3.79521,2634.9,2634.8,3.43505535]
[1739169832934,3.79521,2634.9,2634.8,3.33591389]
[1739169835542,3.79521,2634.9,2634.8,3.43505535]
[1739169836936,3.79517,2635.0,2634.8,3.43505535]
[1739169837138,3.79481,2635.2,2634.8,4.25835535]
[1739169837307,3.79481,2635.2,2635.1,3.33591389]
[1739169838011,3.79481,2635.2,2635.1,3.43505535]
[1739169851754,3.79481,2635.2,2635.1,1.71863028]
[1739169871646,3.79481,2635.2,2635.1,0.09914146]
[1739169871647,7.60941,2635.2,2635.1,0.09914146]
[1739169871980,3.79506,2635.0,2634.9,1.61948882]
[1739169874578,3.79506,2635.0,2634.9,1.71868011]
[1739169876184,3.79506,2635.0,2634.9,1.61948882]
[1739169877746,3.79535,2634.8,2634.7,1.61948882]
[1739169878474,3.79535,2634.8,2634.7,1.71892107]
[1739169880588,3.79535,2634.8,2634.7,2.47222107]
[1739169880965,3.79535,2634.8,2634.7,1.71892107]
[1739169885493,4.61795,2634.8,2634.7,1.71892107]
[1739169885672,12.93795,2634.8,2634.7,0.09943225]
[1739169885995,3.79593,2634.4,2634.3,1.61948882]
[1739169886193,9.11593,2634.4,2634.3,1.61948882]
[1739169886895,12.11593,2634.4,2634.3,1.61948882]
[1739169887067,4.61881,2634.2,2634.1,1.61948882]
[1739169887415,7.61881,2634.2,2634.1,1.61948882]
[1739169889687,7.61881,2634.2,2633.8,3.34355311]
[1739169889891,3.79665,2633.9,2633.8,3.34355311]
[1739169897417,3.79665,2633.9,2633.8,3.44103847]
[1739169900928,3.79665,2633.9,2633.8,3.34355311]
[1739169901724,3.79665,2633.9,2633.8,3.44103847]
[1739169902518,3.79665,2633.9,2633.8,4.26953847]
[1739169903026,5.32,2634.1,2633.8,4.26953847]
[1739169903951,5.32,2634.1,2633.9,0.8285]
[1739169904316,5.32,2634.1,2634.0,0.09716111]
[1739169904717,3.79622,2634.2,2634.0,0.09716111]
[1739169905020,3.79622,2634.2,2634.1,3.34355311]
[1739169905660,3.79622,2634.2,2634.1,3.44071422]
[1739169905830,3.79618,2634.3,2634.1,3.44071422]
[1739169906024,7.59171,2634.5,2634.1,3.44071422]
[1739169906351,5.32,2634.6,2634.4,3.34355311]
[1739169906663,5.32,2634.6,2634.5,0.09703642]
[1739169907149,5.32,2634.6,2634.5,0.85913642]
[1739169907719,0.76634412,2635.2,2634.7,3.7954]
[1739169907720,3.79479,2635.2,2634.7,3.7954]
[1739169907922,3.79479,2635.2,2635.1,3.34355311]
[1739169908319,3.79479,2635.2,2635.1,3.44018229]
[1739169911031,3.79479,2635.2,2635.1,0.09662918]
[1739169911234,3.79521,2634.9,2634.8,3.34355311]
[1739169911418,3.79521,2634.9,2634.8,3.43985827]
[1739169911935,3.79521,2634.9,2634.8,0.09630516]
[1739169912135,7.61231,2634.9,2634.8,0.09630516]
[1739169912432,6.79564,2634.6,2634.5,3.34355311]
[1739169914758,6.79564,2634.6,2634.2,3.34355311]
[1739169914759,7.61274,2634.6,2634.2,3.34355311]
[1739169914959,3.79607,2634.3,2634.2,3.34355311]
[1739169917678,3.79607,2634.4,2634.2,3.34355311]
[1739169917826,3.79607,2634.3,2634.2,3.34355311]
[1739169918457,3.79607,2634.4,2634.2,3.34355311]
[1739169918756,3.79607,2634.3,2634.2,3.34355311]
[1739169919265,3.79586,2634.5,2634.2,3.34355311]
[1739169919454,3.7955,2634.7,2634.3,0.7621]
[1739169919761,3.79531,2634.9,2634.6,3.34355311]
[1739169919963,3.79538,2634.8,2634.6,3.34355311]
[1739169920331,3.79549,2634.7,2634.6,3.34355311]
[1739169921163,3.79549,2634.7,2634.6,3.43965819]
[1739169921362,7.61259,2634.7,2634.6,0.09610508]
[1739169921661,7.61259,2634.7,2634.3,3.34355311]
[1739169921866,3.79593,2634.4,2634.3,3.34355311]
[1739169923631,3.79636,2634.1,2634.0,3.34355311]
[1739169927379,3.79636,2634.1,2634.0,3.43938393]
[1739169930555,3.79635,2634.2,2634.0,3.43938393]
[1739169930737,3.79635,2634.2,2634.1,0.7709]
[1739169931156,3.79635,2634.2,2634.1,0.86682225]
[1739169931365,3.79598,2634.4,2634.1,0.86682225]
[1739169931643,3.79598,2634.4,2634.3,3.34355311]
[1739169931838,3.79598,2634.4,2634.3,3.43973299]
[1739169932973,3.79574,2634.6,2634.3,3.43973299]
[1739169933477,3.79574,2634.6,2634.4,0.7709]
[1739169933677,3.79574,2634.6,2634.5,0.09608015]
[1739169935082,3.79542,2634.8,2634.5,0.09608015]
[1739169935376,3.79542,2634.8,2634.7,3.34355311]
[1739169935745,3.79521,2634.9,2634.7,3.34355311]
[1739169935947,3.79521,2634.9,2634.7,3.43963326]
[1739169936147,3.79535,2634.8,2634.7,3.43963326]
[1739169939396,3.79521,2634.9,2634.7,3.43963326]
[1739169939598,3.79481,2635.2,2634.8,0.8259]
[1739169939762,3.79481,2635.2,2635.1,3.34355311]
[1739169940285,3.79481,2635.2,2635.1,3.438769]
[1739169944369,3.79481,2635.2,2635.1,3.34355311]
[1739169946502,3.79521,2634.9,2634.8,3.34355311]
[1739169946681,3.79521,2634.9,2634.8,3.43861115]
[1739169949487,3.79502,2635.1,2634.8,3.43861115]
[1739169950504,5.32,2635.3,2634.9,0.8259]
[1739169950704,5.32,2635.3,2635.1,3.34355311]
[1739169951005,3.79477,2635.2,2635.1,3.34355311]
[1739169953911,5.32,2635.3,2635.1,3.34355311]
[1739169954714,9.11467,2635.3,2635.1,3.34355311]
[1739169955327,3.79467,2635.3,2635.1,3.34355311]
[1739169956408,3.79463,2635.3,2635.1,3.34355311]
[1739169957228,3.79477,2635.2,2635.1,3.34355311]
[1739169957901,4.59247,2635.2,2635.1,3.34355311]
[1739169958303,3.79477,2635.2,2635.1,3.34355311]
[1739169959031,3.79464,2635.3,2635.1,3.34355311]
[1739169959532,3.79464,2635.3,2635.1,4.11095311]
[1739169960928,3.79477,2635.2,2635.1,3.34355311]
[1739169961328,3.79464,2635.3,2635.1,3.34355311]
[1739169961529,7.58936,2635.3,2635.1,3.34355311]
[1739169961695,3.79464,2635.3,2635.1,3.34355311]
[1739169961897,3.79477,2635.2,2635.1,3.34355311]
[1739169962323,4.59247,2635.2,2635.1,3.34355311]
[1739169963614,3.79477,2635.2,2635.1,3.34355311]
[1739169963816,3.79457,2635.4,2635.1,4.11095311]
[1739169964007,3.79463,2635.3,2635.1,4.11095311]
[1739169964829,3.79443,2635.5,2635.1,4.11095311]
[1739169965017,3.79456,2635.4,2635.1,4.11095311]
[1739169965403,7.5889,2635.5,2635.1,4.11095311]
[1739169965598,3.79443,2635.5,2635.1,4.11095311]
[1739169965801,3.79464,2635.3,2635.1,4.11095311]
[1739169966005,3.79452,2635.4,2635.1,4.11095311]
[1739169966403,3.79465,2635.3,2635.1,4.11095311]
[1739169966604,3.7945,2635.4,2635.1,4.11095311]
[1739169966922,3.79477,2635.2,2635.1,3.34355311]
[1739169970236,9.11477,2635.2,2635.1,3.34355311]
[1739169971025,12.89257,2635.2,2635.1,3.34355311]
[1739169974429,3.79521,2634.9,2634.8,3.34355311]
[1739169976012,9.11521,2634.9,2634.8,3.34355311]
[1739169977257,9.11521,2634.9,2634.8,3.43522569]
[1739169978351,9.11521,2634.9,2634.8,3.34355311]
[1739169978564,5.32,2634.9,2634.8,3.34355311]
[1739169978714,5.32,2634.9,2634.8,3.43522569]
[1739169979535,5.32,2634.9,2634.8,4.23182569]
[1739169980663,5.32,2634.9,2634.8,8.02717569]
[1739169981660,5.32,2634.9,2634.8,4.23182569]
[1739169981826,5.32,2634.9,2634.8,8.02717569]
[1739169982032,7.58915,2635.4,2634.8,8.02717569]
[1739169982232,3.79454,2635.4,2635.3,3.34355311]
[1739169982540,3.79432,2635.6,2635.3,3.43487679]
[1739169982748,3.79442,2635.5,2635.3,3.43487679]
[1739169983130,3.79449,2635.4,2635.3,3.43487679]
[1739169983748,3.79432,2635.6,2635.3,3.43487679]
[1739169984129,3.79435,2635.5,2635.3,3.43487679]
[1739169984967,3.79449,2635.4,2635.3,3.43487679]
[1739169985433,3.79432,2635.6,2635.3,3.43487679]
[1739169985635,3.79449,2635.4,2635.3,3.43487679]
[1739169989335,4.57229,2635.4,2635.3,3.43487679]
[1739169991433,7.57229,2635.4,2635.3,0.09132368]
[1739169991844,3.79492,2635.1,2635.0,3.34355311]
[1739169993136,3.79478,2635.2,2635.0,3.34355311]
[1739169993341,3.79492,2635.1,2635.0,4.14075311]
[1739169993542,3.79492,2635.1,2635.0,3.34355311]
[1739169994639,3.79478,2635.2,2635.0,3.34355311]
[1739169995268,9.11453,2635.4,2635.0,3.34355311]
[1739169995479,3.79472,2635.3,2634.9,24.249739]
[1739169996174,3.79472,2635.3,2635.2,3.34355311]
[1739169996539,9.11453,2635.4,2635.2,3.34355311]
[1739169997577,3.79463,2635.3,2635.2,3.34355311]
[1739169997982,9.11453,2635.4,2635.2,3.34355311]
[1739169998156,3.79463,2635.3,2635.2,3.34355311]
[1739169998358,9.11453,2635.4,2635.2,3.34355311]
[1739169999752,3.79453,2635.4,2635.2,3.34355311]
[1739170001482,3.79463,2635.3,2635.2,3.34355311]
[1739170002381,3.79463,2635.3,2635.2,3.43451135]
[1739170002871,3.79453,2635.4,2635.2,3.43451135]
[1739170004080,7.58912,2635.4,2635.2,3.43451135]
[1739170004259,3.79453,2635.4,2635.2,3.43451135]
[1739170004461,7.58913,2635.4,2635.2,3.43451135]
[1739170004660,3.79453,2635.4,2635.2,3.43451135]
[1739170005476,3.79463,2635.3,2635.2,3.43451135]
[1739170006083,3.79453,2635.4,2635.2,3.43451135]
[1739170006286,4.61811,2635.6,2635.4,5.45428688]
[1739170006472,3.79434,2635.5,2635.4,5.45428688]
[1739170006780,3.79434,2635.5,2635.4,5.54524512]
[1739170007389,4.60624,2635.5,2635.4,5.54524512]
[1739170008175,7.60624,2635.5,2635.4,5.54524512]
[1739170008891,7.60624,2635.5,2635.4,5.45428688]
[1739170010576,8.38210959,2635.5,2635.4,5.54599266]
[1739170011570,13.70210959,2635.5,2635.4,5.54599266]
[1739170012405,13.70210959,2635.5,2635.4,5.45428688]
[1739170012606,13.70210959,2635.5,2635.4,5.54590128]
[1739170013094,13.88930173,2635.5,2635.4,5.54590128]
[1739170019707,3.79549,2634.7,2634.6,3.34355311]
[1739170019909,6.79549,2634.7,2634.6,3.34355311]
[1739170020080,6.79549,2634.7,2634.6,3.43225282]
[1739170020277,6.79549,2634.7,2634.6,3.34355311]
[1739170020482,6.79557,2634.7,2634.6,3.34355311]
[1739170020686,6.79557,2634.7,2634.6,4.19626944]
[1739170020879,3.79557,2634.7,2634.6,4.19626944]
[1739170021696,12.91083,2634.8,2634.6,4.19626944]
[1739170021899,3.79549,2634.7,2634.6,4.19626944]
[1739170022293,9.11536,2634.8,2634.6,4.19626944]
[1739170022695,5.32,2634.8,2634.6,4.19626944]
[1739170023515,3.79523,2634.9,2634.6,4.19626944]
[1739170024574,5.32,2635.0,2634.7,0.764]
[1739170024783,5.32,2635.0,2634.9,3.34355311]
[1739170025314,9.11506,2635.0,2634.9,3.43220297]
[1739170026393,9.11506,2635.0,2634.9,3.34355311]
[1739170026903,9.11506,2635.0,2634.9,3.4322362]
[1739170028148,5.32,2635.0,2634.9,4.2023362]
[1739170028356,9.11506,2635.0,2634.9,4.2023362]
[1739170028563,9.11506,2635.0,2634.9,3.4322362]
[1739170029218,9.11506,2635.0,2634.9,4.2023362]
[1739170029425,3.79502,2635.1,2634.9,4.2023362]
[1739170029950,3.79506,2635.0,2634.9,3.4322362]
[1739170031408,3.79506,2635.0,2634.9,3.34355311]
[1739170031838,3.79506,2635.0,2634.9,3.43216143]
[1739170034945,3.79493,2635.1,2634.9,3.43216143]
[1739170035115,6.0742,2635.4,2634.9,3.43216143]
[1739170035116,3.79481,2635.2,2634.9,4.20226143]
[1739170035440,3.0,2635.3,2635.2,0.7701]
[1739170035674,3.79461,2635.4,2635.2,0.7701]
[1739170035843,3.79461,2635.4,2635.2,0.63273798]
[1739170037064,7.58923,2635.4,2635.2,0.63273798]
[1739170037271,3.79461,2635.4,2635.2,0.63273798]
[1739170037978,6.79442,2635.5,2635.2,0.63273798]
[1739170038137,6.79442,2635.5,2635.4,3.34355311]
[1739170038565,6.79442,2635.5,2635.4,3.43211158]
[1739170038979,3.79428,2635.6,2635.4,3.43211158]
[1739170039258,9.11406,2635.7,2635.5,0.7701]
[1739170039466,3.7942,2635.6,2635.5,0.85825975]
[1739170042685,3.7942,2635.6,2635.5,0.08815975]
[1739170044175,4.5989,2635.6,2635.5,0.08815975]
[1739170044787,3.7942,2635.6,2635.5,0.90925975]
[1739170046605,5.32,2635.7,2635.5,0.90925975]
[1739170047095,5.32,2635.7,2635.5,0.8211]
[1739170047311,5.32,2635.7,2635.6,0.08761984]
[1739170049395,5.32,2635.7,2635.6,0.90871984]
[1739170049586,5.32,2635.7,2635.6,0.8211]
[1739170049898,5.32,2635.7,2635.6,0.90856206]
[1739170050076,3.79371,2636.0,2635.6,0.90856206]
[1739170050278,3.79371,2636.0,2635.9,3.34355311]
[1739170050601,3.49024544,2636.3,2635.9,4.16465311]
[1739170050896,3.49024544,2636.3,2636.2,4.16465311]
[1739170051400,3.49024544,2636.3,2636.2,4.25188271]
[1739170055608,5.32,2636.5,2636.2,4.25188271]
[1739170055813,3.0,2636.7,2636.2,4.25188271]
[1739170055814,3.7927,2636.7,2636.2,8.04520271]
[1739170056022,3.7927,2636.7,2636.5,3.34355311]
[1739170056311,3.79276,2636.6,2636.5,3.34355311]
[1739170056674,3.79276,2636.6,2636.5,3.42999401]
[1739170058578,9.11254,2636.8,2636.5,3.42999401]
[1739170058820,5.32,2636.8,2636.5,3.42999401]
[1739170059004,14.43,2638.2,2636.7,6.68710622]
[1739170059005,6.0869,2637.3,2636.7,6.68710622]
[1739170059192,9.0869,2637.3,2637.2,3.34355311]
[1739170059393,8.32,2637.3,2637.2,3.34355311]
[1739170060892,8.32,2637.3,2637.2,3.42999401]
[1739170061539,5.32,2637.3,2637.2,3.42999401]
[1739170062143,3.79164,2637.4,2637.2,3.42999401]
[1739170062517,3.79175,2637.3,2637.2,0.0864409]
[1739170062945,3.79175,2637.3,2637.0,3.34355311]
[1739170063126,3.79175,2637.3,2637.2,0.0864409]
[1739170063324,3.79204,2637.1,2637.0,3.34355311]
[1739170063855,11.34996,2637.5,2637.0,3.34355311]
[1739170064007,4.55839,2637.5,2637.4,3.34355311]
[1739170065658,3.79202,2637.2,2637.1,3.34355311]
[1739170067252,4.55892,2637.2,2637.1,3.34355311]
[1739170067611,3.79202,2637.2,2637.1,3.34355311]
[1739170071113,0.7651,2637.1,2636.8,3.34355311]
[1739170071423,3.79233,2636.9,2636.8,3.34355311]
[1739170071622,3.79219,2637.0,2636.8,3.34355311]
[1739170071833,3.79219,2637.0,2636.9,0.08503028]
[1739170072228,9.87715,2637.1,2636.8,3.34355311]
[1739170072428,3.79233,2636.9,2636.8,3.34355311]
[1739170073845,4.54573,2636.9,2636.8,3.34355311]
[1739170074050,3.79276,2636.6,2636.5,3.34355311]
[1739170075614,4.54616,2636.6,2636.5,3.34355311]
[1739170076245,3.79319,2636.3,2636.2,3.34355311]
[1739170077248,3.79319,2636.3,2636.2,3.42863316]
[1739170079165,4.54659,2636.3,2636.2,0.08508005]
[1739170079526,3.79362,2636.0,2635.9,3.34355311]
[1739170080154,3.79348,2636.1,2635.6,18.33873711]
[1739170080155,3.79405,2635.7,2635.6,18.33873711]
[1739170080656,3.79391,2635.8,2635.6,18.33873711]
[1739170080657,3.79391,2635.8,2635.7,0.8106]
[1739170080860,3.79391,2635.8,2635.7,0.96494919]
[1739170081155,3.79371,2636.0,2635.7,0.96494919]
[1739170081330,3.79371,2636.0,2635.9,3.34355311]
[1739170083171,3.79348,2636.1,2635.9,3.34355311]
[1739170083338,7.58707,2636.1,2635.9,3.34355311]
[1739170083836,3.79362,2636.0,2635.9,3.34355311]
[1739170085359,4.54702,2636.0,2635.9,3.34355311]
[1739170085851,9.86702,2636.0,2635.9,3.34355311]
[1739170087064,9.0734,2636.0,2635.7,0.15434919]
[1739170087235,6.79391,2635.8,2635.7,0.15434919]
[1739170087433,7.62261,2635.8,2635.7,0.15434919]
[1739170087639,3.79391,2635.8,2635.7,0.15434919]
[1739170090146,4.62261,2635.8,2635.7,0.15434919]
[1739170091755,3.79391,2635.8,2635.7,0.15434919]
[1739170092278,3.79391,2635.8,2635.7,0.24168668]
[1739170094560,6.79377,2635.9,2635.8,11.200136]
[1739170094946,6.79377,2635.9,2635.8,11.28754823]
[1739170095449,7.58837,2635.9,2635.8,11.28754823]
[1739170096270,6.79377,2635.9,2635.8,11.28754823]
[1739170104087,3.79377,2635.9,2635.8,11.28754823]
[1739170104290,12.90737,2636.0,2635.8,11.28754823]
[1739170104594,5.32,2636.0,2635.9,4.09455311]
[1739170105081,9.11362,2636.0,2635.9,4.17883724]
[1739170106693,9.11362,2636.0,2635.9,3.42783724]
[1739170109082,9.11362,2636.0,2635.9,4.17883724]
[1739170109281,9.11362,2636.0,2635.9,3.42783724]
[1739170109897,3.79362,2636.0,2635.9,3.42783724]
[1739170111712,6.79362,2636.0,2635.9,0.08428413]
[1739170111912,3.0,2635.9,2635.8,11.200136]
[1739170112116,7.58837,2635.9,2635.8,9.94054473]
[1739170115709,12.90837,2635.9,2635.8,9.94054473]
[1739170116403,12.11377,2635.9,2635.8,9.94054473]
[1739170118293,12.94457,2635.9,2635.8,9.94054473]
[1739170119599,12.94457,2635.9,2635.8,10.01262938]
[1739170124313,12.94457,2635.9,2635.8,8.11566938]
[1739170128666,12.11377,2635.9,2635.8,8.11566938]
[1739170128810,12.11377,2635.9,2635.8,8.90856938]
[1739170135839,9.11377,2635.9,2635.8,8.90856938]
[1739170137564,3.79362,2636.0,2635.8,8.90856938]
[1739170137742,5.32,2636.3,2636.0,0.7594]
[1739170137942,3.79308,2636.4,2636.2,3.34355311]
[1739170138242,3.79312,2636.4,2636.3,0.7594]
[1739170138456,3.79282,2636.6,2636.3,0.83128534]
[1739170138685,3.79255,2636.8,2636.5,3.34355311]
[1739170138985,3.79263,2636.7,2636.5,3.34355311]
[1739170139285,3.79263,2636.7,2636.6,0.83128534]
[1739170140473,3.79255,2636.8,2636.6,0.83128534]
[1739170140774,3.79229,2637.0,2636.6,0.83128534]
[1739170140974,3.79229,2637.0,2636.9,3.34355311]
[1739170141173,3.79195,2637.2,2636.9,4.10295311]
[1739170141351,3.79195,2637.2,2636.9,4.17406656]
[1739170141556,3.79207,2637.1,2636.9,4.17406656]
[1739170145746,7.58399,2637.2,2636.9,4.17406656]
[1739170145946,3.79206,2637.1,2636.9,4.17406656]
[1739170146479,3.79218,2637.0,2636.9,0.07111345]
[1739170146845,3.79259,2636.8,2636.6,4.10295311]
[1739170147352,3.79259,2636.8,2636.7,0.06468361]
[1739170152322,3.79261,2636.7,2636.6,3.34355311]
[1739170152812,3.79261,2636.7,2636.6,3.40819926]
[1739170153324,3.79259,2636.8,2636.6,3.40819926]
[1739170153615,5.32,2636.9,2636.7,0.7845]
[1739170153811,9.11236,2636.9,2636.7,0.7845]
[1739170154164,9.11236,2636.9,2636.8,0.06464615]
[1739170155497,5.32,2636.9,2636.8,0.06464615]
[1739170157182,3.79226,2637.0,2636.8,0.06464615]
[1739170157371,3.79233,2636.9,2636.8,0.06464615]
[1739170157778,3.79266,2636.7,2636.4,0.7845]
[1739170158284,3.79281,2636.6,2636.5,0.0646793]
[1739170158594,3.79281,2636.6,2636.5,3.40823241]
[1739170160394,6.79281,2636.6,2636.5,3.40823241]
[1739170160716,7.59421,2636.6,2636.5,0.0646793]
[1739170161079,3.79319,2636.3,2636.2,3.34355311]
[1739170166190,3.79305,2636.4,2636.2,3.34355311]
[1739170166366,3.79319,2636.3,2636.2,3.34355311]
[1739170166567,3.79305,2636.4,2636.2,3.34355311]
[1739170166976,3.79305,2636.4,2636.3,0.7845]
[1739170167375,3.79278,2636.6,2636.3,0.84952992]
[1739170167601,3.79278,2636.6,2636.5,3.34355311]
[1739170167803,7.58534,2636.7,2636.5,3.34355311]
[1739170168003,3.79276,2636.6,2636.5,3.40857474]
[1739170170484,3.79262,2636.7,2636.5,3.40857474]
[1739170171017,3.79276,2636.6,2636.5,3.40857474]
[1739170172389,3.79255,2636.8,2636.5,4.16227474]
[1739170172596,3.79264,2636.7,2636.5,4.16227474]
[1739170172818,3.79264,2636.7,2636.6,3.34355311]
[1739170173311,5.32,2637.0,2636.6,3.34355311]
[1739170173312,5.32,2637.0,2636.6,3.40885652]
[1739170173484,5.32,2637.0,2636.9,3.34355311]
[1739170173485,9.11219,2637.0,2636.9,3.34355311]
[1739170173683,9.11219,2637.0,2636.9,3.40854983]
[1739170177990,3.79219,2637.0,2636.9,3.40854983]
[1739170179123,3.79206,2637.1,2636.9,3.40854983]
[1739170179333,3.79218,2637.0,2636.9,3.40854983]
[1739170180591,3.79206,2637.1,2636.9,3.40854983]
[1739170181847,3.79181,2637.3,2636.9,3.40854983]
[1739170182061,3.79181,2637.3,2637.2,3.34355311]
[1739170182264,3.79164,2637.4,2637.2,3.34205307]
[1739170182413,3.79164,2637.4,2637.2,3.40666033]
[1739170182614,4.54973,2637.5,2637.2,3.40666033]
[1739170182809,3.79165,2637.4,2637.2,4.19476033]
[1739170183360,3.79153,2637.5,2637.2,4.19476033]
[1739170184964,0.30284131,2637.7,2637.2,4.19476033]
[1739170185116,0.74814198,2637.8,2637.6,3.34355311]
[1739170185653,4.53917198,2637.8,2637.7,0.06460726]
[1739170186346,3.79118,2637.7,2637.6,3.34355311]
[1739170186514,6.79118,2637.7,2637.6,3.34355311]
[1739170186715,3.79161,2637.4,2637.3,3.34355311]
[1739170187517,3.79204,2637.1,2637.0,3.34355311]
[1739170188079,4.55024,2637.1,2637.0,3.34355311]
[1739170189868,3.79204,2637.1,2637.0,3.40778747]
[1739170192464,3.79198,2637.2,2637.0,3.40778747]
[1739170192835,3.79204,2637.1,2637.0,3.40778747]
[1739170193700,3.79204,2637.1,2637.0,3.34355311]
[1739170193899,4.62234,2637.1,2637.0,3.34355311]
[1739170194702,3.79204,2637.1,2637.0,3.34355311]
[1739170194999,3.79204,2637.1,2637.0,3.40778747]
[1739170195348,3.79198,2637.2,2637.0,3.40778747]
[1739170195553,3.79198,2637.2,2637.1,0.7832]
[1739170196103,3.79204,2637.1,2637.0,3.34355311]
[1739170197806,6.79204,2637.1,2637.0,3.34355311]
[1739170199003,12.11204,2637.1,2637.0,3.34355311]
[1739170199911,12.94234,2637.1,2637.0,3.34355311]
[1739170202491,3.79247,2636.8,2636.7,3.34355311]
[1739170202897,3.79247,2636.8,2636.7,3.40837579]
[1739170204118,3.79247,2636.8,2636.7,3.34355311]
[1739170204286,12.94277,2636.8,2636.7,3.34355311]
[1739170204494,3.7929,2636.5,2636.4,3.34355311]
[1739170204924,3.7929,2636.5,2636.4,3.40837579]
[1739170205844,3.79262,2636.7,2636.4,4.19157579]
[1739170206628,3.79286,2636.6,2636.4,4.19157579]
[1739170206833,3.79286,2636.6,2636.5,3.34355311]
[1739170207134,6.79286,2636.6,2636.5,3.34355311]
[1739170207334,6.79286,2636.6,2636.5,3.40841723]
[1739170207528,6.79286,2636.6,2636.5,3.34355311]